bitfinex/quotes_BTCUSD_20240915
["timestamp","ask_amount","ask_price","bid_price","bid_amount"]
[1726421716756,0.166759,59967.0,59962.0,0.000822]
[1726421717609,0.004,59966.0,59962.0,0.000822]
[1726421718057,0.483346,59972.0,59962.0,0.000822]
[1726421718302,0.004,59967.0,59966.0,0.16676]
[1726421718548,0.004,59967.0,59963.0,0.001]
[1726421718764,0.004,59967.0,59956.0,0.0999649]
[1726421718765,0.67424148,59964.0,59954.0,0.12497152]
[1726421718991,0.16679,59956.0,59951.0,0.2167914]
[1726421719212,0.16679,59956.0,59950.0,0.000822]
[1726421719436,0.16679,59956.0,59951.0,0.1668]
[1726421719652,0.166802,59951.0,59950.0,0.000822]
[1726421719900,0.1803,59951.0,59950.0,0.000822]
[1726421720120,0.347102,59951.0,59950.0,0.000822]
[1726421720543,0.1803,59951.0,59950.0,0.000822]
[1726421720760,0.1803,59951.0,59950.0,0.167627]
[1726421720977,0.1803,59951.0,59950.0,0.000822]
[1726421721809,0.1803,59951.0,59950.0,0.001822]
[1726421722365,0.1803,59951.0,59950.0,0.000822]
[1726421722612,0.1833,59951.0,59950.0,0.000822]
[1726421722839,0.1863,59951.0,59950.0,0.000822]
[1726421724247,0.686707,59951.0,59950.0,0.000822]
[1726421724479,0.988107,59951.0,59950.0,0.000822]
[1726421724671,0.654502,59951.0,59950.0,0.000822]
[1726421725903,1.321712,59951.0,59950.0,0.000822]
[1726421726116,0.988107,59951.0,59950.0,0.000822]
[1726421726579,0.166826,59943.0,59940.0,0.000822]
[1726421726825,0.166823,59944.0,59940.0,0.000822]
[1726421727318,0.166814,59947.0,59942.0,0.166826]
[1726421727850,0.001,59943.0,59942.0,0.166826]
[1726421728061,0.002,59943.0,59942.0,0.166826]
[1726421728484,0.001,59943.0,59942.0,0.166826]
[1726421728706,0.166814,59947.0,59942.0,0.166826]
[1726421728917,0.02617593,59949.0,59942.0,0.335653]
[1726421729130,0.02617593,59949.0,59945.0,0.166817]
[1726421729350,0.19298493,59949.0,59942.0,0.333653]
[1726421729561,0.001,59943.0,59942.0,0.173827]
[1726421729767,0.001,59943.0,59942.0,0.507482]
[1726421730256,0.002,59943.0,59942.0,0.514482]
[1726421730475,0.002,59943.0,59942.0,0.180827]
[1726421730684,0.001,59943.0,59942.0,0.173827]
[1726421731637,0.002,59943.0,59942.0,0.180827]
[1726421731846,0.02345156,59943.0,59942.0,0.180827]
[1726421732044,0.002,59943.0,59942.0,0.514482]
[1726421732246,0.002,59943.0,59942.0,0.515304]
[1726421732852,0.002,59943.0,59942.0,0.848959]
[1726421734792,0.002,59943.0,59942.0,0.515304]
[1726421735845,0.001,59943.0,59942.0,0.508304]
[1726421736206,0.002,59943.0,59942.0,0.515304]
[1726421736661,0.002,59943.0,59942.0,0.014822]
[1726421736877,0.002,59943.0,59942.0,0.181649]
[1726421737319,0.02349027,59943.0,59942.0,0.181649]
[1726421737545,0.02249027,59943.0,59942.0,0.174649]
[1726421737759,0.02349027,59943.0,59942.0,0.180649]
[1726421737970,0.02249027,59943.0,59942.0,0.167649]
[1726421738177,0.02149027,59943.0,59942.0,0.167649]
[1726421738389,0.166812,59948.0,59944.0,0.166822]
[1726421738829,0.02150572,59947.0,59944.0,0.166822]
[1726421739243,0.02150572,59947.0,59942.0,0.509302]
[1726421739445,0.02150572,59947.0,59943.0,0.166824]
[1726421739650,0.18832072,59947.0,59943.0,0.166824]
[1726421739861,0.18832072,59947.0,59942.0,0.008822]
[1726421739862,0.166825,59943.0,59942.0,0.008822]
[1726421740105,0.166823,59944.0,59942.0,0.000822]
[1726421740323,0.01611388,59943.0,59942.0,0.000822]
[1726421740538,0.166817,59946.0,59942.0,0.000822]
[1726421740750,0.02148547,59945.0,59944.0,0.003]
[1726421741182,0.02148547,59945.0,59942.0,0.000822]
[1726421741429,0.02148547,59945.0,59942.0,0.016822]
[1726421741430,0.002,59943.0,59942.0,0.016822]
[1726421741689,0.02247516,59943.0,59942.0,0.008822]
[1726421741921,0.02147516,59943.0,59942.0,0.000822]
[1726421742414,0.001,59945.0,59942.0,0.173648]
[1726421742711,0.001,59945.0,59944.0,0.166822]
[1726421743170,0.02717486,59945.0,59944.0,0.166822]
[1726421743676,0.02617486,59945.0,59944.0,0.166822]
[1726421743960,0.02617486,59945.0,59942.0,0.167647]
[1726421744175,0.002,59943.0,59942.0,0.183647]
[1726421744375,0.01710331,59943.0,59942.0,0.175647]
[1726421744603,0.02147108,59943.0,59942.0,0.167647]
[1726421745255,0.002,59945.0,59942.0,0.173647]
[1726421745468,0.02147108,59943.0,59942.0,0.173647]
[1726421745672,0.001,59943.0,59942.0,0.181647]
[1726421745868,0.02347108,59943.0,59942.0,0.189647]
[1726421746093,0.002,59943.0,59942.0,0.189647]
[1726421747123,0.001,59943.0,59942.0,0.175647]
[1726421747353,0.166814,59947.0,59942.0,0.167147]
[1726421747573,0.166814,59947.0,59942.0,0.173147]
[1726421747796,0.02148704,59946.0,59942.0,0.173147]
[1726421748231,0.02148704,59946.0,59942.0,0.167147]
[1726421748450,0.002,59943.0,59942.0,0.183147]
[1726421748644,0.001,59943.0,59942.0,0.175147]
[1726421748860,0.02246648,59943.0,59942.0,0.175147]
[1726421749098,0.166814,59947.0,59942.0,0.172147]
[1726421749341,0.166814,59947.0,59943.0,0.166825]
[1726421750469,0.166809,59949.0,59943.0,0.333648]
[1726421750689,0.166809,59949.0,59945.0,0.166818]
[1726421750903,0.166809,59949.0,59943.0,0.500471]
[1726421751543,0.335259,59950.0,59943.0,0.170823]
[1726421751770,0.166814,59947.0,59943.0,0.168823]
[1726421751986,0.001646,59950.0,59944.0,0.166821]
[1726421752196,0.166811,59948.0,59944.0,0.166821]
[1726421752440,0.02148183,59947.0,59944.0,0.166821]
[1726421752692,0.02148183,59947.0,59943.0,0.002]
[1726421752693,0.02148183,59947.0,59943.0,0.335647]
[1726421752939,0.02148183,59947.0,59945.0,0.166819]
[1726421753381,0.166808,59949.0,59945.0,0.166819]
[1726421753592,0.0214904,59948.0,59945.0,0.166819]
[1726421753809,0.0214904,59948.0,59944.0,0.001]
[1726421754037,0.0214904,59948.0,59944.0,0.16782]
[1726421754038,0.1883024,59948.0,59944.0,0.16782]
[1726421754279,0.1883024,59948.0,59944.0,0.16682]
[1726421754486,0.1883024,59948.0,59945.0,0.006]
[1726421754696,0.1883024,59948.0,59945.0,0.002]
[1726421755115,0.1883024,59948.0,59944.0,0.16982]
[1726421757161,0.166815,59947.0,59945.0,0.003]
[1726421757372,0.02148299,59946.0,59943.0,0.166823]
[1726421757584,0.02148299,59946.0,59945.0,0.003]
[1726421758015,0.02148299,59946.0,59943.0,0.166823]
[1726421758229,0.02148299,59946.0,59945.0,0.004]
[1726421758448,0.166814,59947.0,59945.0,0.008]
[1726421758666,0.02148299,59946.0,59945.0,0.004]
[1726421758879,0.02148299,59946.0,59945.0,0.171819]
[1726421759321,0.168452,59950.0,59945.0,0.005]
[1726421759322,0.166808,59949.0,59945.0,0.005]
[1726421759550,0.02147695,59946.0,59945.0,0.171819]
[1726421759770,0.166809,59949.0,59945.0,0.171819]
[1726421760197,0.02148726,59948.0,59945.0,0.171819]
[1726421760409,0.18829926,59948.0,59945.0,0.005]
[1726421761072,0.18829926,59948.0,59945.0,0.007]
[1726421761493,0.18829926,59948.0,59943.0,0.166822]
[1726421761703,0.18829926,59948.0,59945.0,0.006]
[1726421761924,0.02148726,59948.0,59945.0,0.006]
[1726421762138,0.166816,59946.0,59945.0,0.006]
[1726421762365,0.166816,59946.0,59945.0,0.003]
[1726421762584,0.166819,59945.0,59942.0,0.000322]
[1726421762814,0.166825,59943.0,59942.0,0.000322]
[1726421763042,0.500475,59943.0,59942.0,0.000322]
[1726421763274,0.5219343,59943.0,59942.0,0.000322]
[1726421764453,0.5229343,59943.0,59942.0,0.008322]
[1726421764694,0.5239343,59943.0,59942.0,0.016322]
[1726421765336,0.0234593,59943.0,59942.0,0.016322]
[1726421765555,0.1902843,59943.0,59942.0,0.016322]
[1726421767317,0.0234593,59943.0,59942.0,0.016322]
[1726421767551,0.0234593,59943.0,59942.0,0.516804]
[1726421767768,0.002,59943.0,59942.0,0.850459]
[1726421767979,0.002,59943.0,59942.0,0.92552561]
[1726421768189,0.002,59943.0,59942.0,1.18594996]
[1726421768413,0.002,59943.0,59942.0,1.11080654]
[1726421769254,0.002,59943.0,59942.0,1.21099776]
[1726421769461,0.002,59943.0,59942.0,1.18596987]
[1726421769900,0.002,59943.0,59942.0,0.85231487]
[1726421770323,0.002,59943.0,59942.0,0.59196733]
[1726421770533,0.002,59943.0,59942.0,0.85250536]
[1726421771000,0.002,59943.0,59942.0,0.59196733]
[1726421771431,0.002,59943.0,59942.0,0.516804]
[1726421772505,0.002,59943.0,59942.0,0.25831233]
[1726421772507,0.002,59943.0,59942.0,0.06643359]
[1726421772733,0.002,59943.0,59942.0,0.016322]
[1726421772942,0.18661382,59943.0,59942.0,0.016322]
[1726421773164,0.01978882,59943.0,59942.0,0.016322]
[1726421773392,0.002,59943.0,59942.0,0.52014005]
[1726421773632,0.002,59943.0,59942.0,0.59530338]
[1726421773847,0.002,59943.0,59942.0,0.85582929]
[1726421774291,0.002,59943.0,59942.0,1.18948429]
[1726421774507,0.002,59943.0,59942.0,0.85582929]
[1726421774950,0.002,59943.0,59942.0,0.52014005]
[1726421775164,0.002,59943.0,59942.0,0.59530338]
[1726421775378,0.002,59943.0,59942.0,0.52014005]
[1726421775589,0.002,59943.0,59942.0,0.59530338]
[1726421775796,0.002,59943.0,59942.0,0.516804]
[1726421777803,0.002,59943.0,59942.0,0.59196733]
[1726421778018,0.002,59943.0,59942.0,0.516804]
[1726421778448,0.002,59943.0,59942.0,0.09148533]
[1726421778664,0.700075,59943.0,59942.0,0.016322]
[1726421778931,0.21739225,59943.0,59942.0,0.016322]
[1726421779138,0.38421725,59943.0,59942.0,0.016322]
[1726421779849,0.71786725,59943.0,59942.0,0.016322]
[1726421781238,1.05151725,59943.0,59942.0,0.016322]
[1726421781715,0.71786725,59943.0,59942.0,0.016322]
[1726421782155,1.35311725,59943.0,59942.0,0.016322]
[1726421783033,1.35311725,59943.0,59942.0,0.008322]
[1726421783034,1.37829306,59943.0,59942.0,0.008322]
[1726421783249,1.38129306,59943.0,59942.0,0.008322]
[1726421783898,1.38293906,59943.0,59942.0,0.008322]
[1726421784136,1.38193906,59943.0,59942.0,0.000322]
[1726421784370,1.38493906,59943.0,59942.0,0.000322]
[1726421784800,1.36419006,59943.0,59942.0,0.000322]
[1726421785227,1.33801425,59943.0,59942.0,0.000322]
[1726421786373,0.52591325,59943.0,59942.0,0.000322]
[1726421786802,0.19226325,59943.0,59942.0,0.000322]
[1726421787490,0.02543825,59943.0,59942.0,0.000322]
[1726421787704,0.19226325,59943.0,59942.0,0.000322]
[1726421787920,0.02543825,59943.0,59942.0,0.000322]
[1726421788208,0.02243825,59943.0,59942.0,0.000322]
[1726421788436,0.04861404,59943.0,59942.0,0.33731327]
[1726421788655,0.004646,59943.0,59942.0,0.502804]
[1726421788875,0.001646,59943.0,59942.0,0.502804]
[1726421789305,0.004646,59943.0,59942.0,0.502804]
[1726421789749,0.001646,59943.0,59942.0,0.502804]
[1726421790190,0.001646,59943.0,59942.0,0.504804]
[1726421791615,0.001646,59943.0,59942.0,0.838459]
[1726421791870,0.001646,59943.0,59942.0,0.504804]
[1726421792397,0.001646,59943.0,59942.0,0.55487349]
[1726421793104,0.001646,59943.0,59942.0,0.05439149]
[1726421793584,0.001646,59943.0,59942.0,0.004322]
[1726421793837,0.502121,59943.0,59942.0,0.004322]
[1726421794064,0.54609432,59943.0,59942.0,0.004322]
[1726421794281,0.85356975,59943.0,59942.0,0.004322]
[1726421794950,1.18721975,59943.0,59942.0,0.004322]
[1726421798498,1.21339709,59943.0,59942.0,0.004322]
[1726421805803,1.18721975,59943.0,59942.0,0.004322]
[1726421810619,1.21339734,59943.0,59942.0,0.004322]
[1726421812358,0.87974734,59943.0,59942.0,0.004322]
[1726421815986,1.21339734,59943.0,59942.0,0.004322]
[1726421816221,1.41159734,59943.0,59942.0,0.004322]
[1726421816696,1.38541975,59943.0,59942.0,0.004322]
[1726421816933,1.38541975,59943.0,59942.0,0.002322]
[1726421817187,1.38841975,59943.0,59942.0,0.002322]
[1726421818124,1.39847051,59943.0,59942.0,0.002322]
[1726421818587,1.39847051,59943.0,59942.0,0.000322]
[1726421818806,1.40147051,59943.0,59942.0,0.000322]
[1726421819936,1.4605299,59941.0,59940.0,0.000822]
[1726421820184,1.7961909,59941.0,59940.0,0.000822]
[1726421820405,1.80979955,59941.0,59940.0,0.000822]
[1726421820894,1.3606669,59934.0,59933.0,0.000822]
[1726421821361,1.37424564,59934.0,59933.0,0.000822]
[1726421821589,1.40042671,59934.0,59933.0,0.000822]
[1726421822997,1.40042671,59934.0,59933.0,0.001822]
[1726421822998,1.41042671,59934.0,59933.0,0.001822]
[1726421823667,1.41942671,59934.0,59933.0,0.002822]
[1726421824588,0.55930981,59934.0,59933.0,0.002822]
[1726421825250,0.53312874,59934.0,59933.0,0.002822]
[1726421825470,0.52412874,59934.0,59933.0,0.001822]
[1726421825702,0.52312874,59934.0,59933.0,0.001822]
[1726421826145,0.52712874,59934.0,59933.0,0.001822]
[1726421826361,0.52712874,59934.0,59933.0,0.000822]
[1726421826362,0.51812874,59934.0,59933.0,0.000822]
[1726421826608,0.52412874,59934.0,59933.0,0.000822]
[1726421827049,0.52112874,59934.0,59933.0,0.000822]
[1726421827261,0.52412874,59934.0,59933.0,0.000822]
[1726421827901,0.51712874,59934.0,59933.0,0.000822]
[1726421828118,0.52012874,59934.0,59933.0,0.000822]
[1726421828338,0.54631004,59934.0,59933.0,0.000822]
[1726421828561,0.54031004,59934.0,59933.0,0.000822]
[1726421828790,0.54231004,59934.0,59933.0,0.000822]
[1726421829012,0.54531004,59934.0,59933.0,0.000822]
[1726421829721,0.04776004,59934.0,59933.0,0.000822]
[1726421829944,0.21461004,59934.0,59933.0,0.000822]
[1726421830641,0.04776004,59934.0,59933.0,0.000822]
[1726421831077,0.21461004,59934.0,59933.0,0.000822]
[1726421832159,0.04776004,59934.0,59933.0,0.000822]
[1726421832382,0.21461004,59934.0,59933.0,0.000822]
[1726421832606,0.04776004,59934.0,59933.0,0.000822]
[1726421832825,0.21461004,59934.0,59933.0,0.000822]
[1726421833303,0.88201004,59934.0,59933.0,0.000822]
[1726421833519,0.54831004,59934.0,59933.0,0.000822]
[1726421834195,0.52212874,59934.0,59933.0,0.000822]
[1726421835804,0.18842874,59934.0,59933.0,0.000822]
[1726421836039,0.52212874,59934.0,59933.0,0.000822]
[1726421836732,0.18842874,59934.0,59933.0,0.000822]
[1726421837200,0.51912874,59934.0,59933.0,0.000822]
[1726421837203,0.01857874,59934.0,59933.0,0.000822]
[1726421837424,0.01657874,59934.0,59933.0,0.000822]
[1726421837642,0.01957874,59934.0,59933.0,0.000822]
[1726421838315,0.01657874,59934.0,59933.0,0.000822]
[1726421838558,0.01457874,59934.0,59933.0,0.000822]
[1726421838776,0.01357874,59934.0,59933.0,0.000822]
[1726421839207,0.19302528,59936.0,59933.0,0.006822]
[1726421839430,0.01382566,59934.0,59933.0,0.006822]
[1726421839652,0.166847,59935.0,59933.0,0.008822]
[1726421839886,0.01382566,59934.0,59933.0,0.008822]
[1726421840110,0.01382566,59934.0,59933.0,0.006822]
[1726421840332,0.19302528,59936.0,59933.0,0.000822]
[1726421840570,0.01382819,59934.0,59933.0,0.002822]
[1726421840782,0.166848,59935.0,59933.0,0.002822]
[1726421840996,0.0138214,59934.0,59933.0,0.000822]
[1726421841231,0.0138214,59934.0,59933.0,0.002822]
[1726421841450,0.19302628,59936.0,59933.0,0.002822]
[1726421841658,0.01227022,59934.0,59933.0,0.002822]
[1726421841873,0.02618028,59936.0,59933.0,0.002822]
[1726421842311,0.00987457,59935.0,59933.0,0.002822]
[1726421842541,0.00987457,59935.0,59933.0,0.171674]
[1726421842762,0.00987457,59935.0,59934.0,0.16685]
[1726421842983,0.00987457,59935.0,59933.0,0.002822]
[1726421843212,0.02618028,59936.0,59933.0,0.002822]
[1726421843455,0.00985908,59934.0,59933.0,0.000822]
[1726421843649,0.02618028,59936.0,59933.0,0.167674]
[1726421843864,0.00985908,59934.0,59933.0,0.167674]
[1726421844074,0.02618028,59936.0,59933.0,0.167674]
[1726421844511,0.00986424,59935.0,59933.0,0.167674]
[1726421845429,0.00986424,59935.0,59934.0,0.16685]
[1726421845649,0.16684,59938.0,59934.0,0.16685]
[1726421845868,0.00986424,59935.0,59934.0,0.16685]
[1726421846097,0.001646,59940.0,59934.0,0.16685]
[1726421846312,0.166837,59939.0,59934.0,0.16685]
[1726421846547,0.17672186,59939.0,59934.0,0.16785]
[1726421846971,0.17672186,59939.0,59934.0,0.16685]
[1726421847179,0.166839,59938.0,59934.0,0.16685]
[1726421847637,0.00813135,59937.0,59934.0,0.16685]
[1726421848311,0.17497335,59937.0,59933.0,0.000822]
[1726421848534,0.00813135,59937.0,59934.0,0.166849]
[1726421848755,0.17497335,59937.0,59933.0,0.000822]
[1726421849679,0.00813135,59937.0,59933.0,0.000822]
[1726421849918,0.16685,59934.0,59933.0,0.000822]
[1726421850178,0.83425,59934.0,59933.0,0.000822]
[1726421850424,1.31526512,59934.0,59933.0,0.000822]
[1726421851135,1.34144697,59934.0,59933.0,0.000822]
[1726421851408,1.34144697,59934.0,59933.0,0.002822]
[1726421851627,0.53485826,59934.0,59933.0,0.000822]
[1726421852059,0.53585826,59934.0,59933.0,0.000822]
[1726421852292,0.53585826,59934.0,59933.0,0.002822]
[1726421852765,0.53585826,59934.0,59933.0,0.000822]
[1726421853197,0.86243185,59934.0,59933.0,0.000822]
[1726421853634,0.52873185,59934.0,59933.0,0.000822]
[1726421853864,0.19503185,59934.0,59933.0,0.000822]
[1726421854802,0.52873185,59934.0,59933.0,0.000822]
[1726421860826,0.02818185,59934.0,59933.0,0.000822]
[1726421861057,0.16885,59934.0,59933.0,0.000822]
[1726421861296,0.002,59934.0,59933.0,0.000822]
[1726421864336,0.16885,59934.0,59933.0,0.000822]
[1726421867051,0.002,59934.0,59933.0,0.000822]
[1726421868926,0.16885,59934.0,59933.0,0.000822]
[1726421869440,0.50255,59934.0,59933.0,0.000822]
[1726421870151,0.16885,59934.0,59933.0,0.000822]
[1726421870393,0.50255,59934.0,59933.0,0.000822]
[1726421886635,0.16885,59934.0,59933.0,0.000822]
[1726421886851,0.50255,59934.0,59933.0,0.000822]
[1726421887930,0.16885,59934.0,59933.0,0.000822]
[1726421888144,0.002,59934.0,59933.0,0.000822]
[1726421894984,0.002,59934.0,59933.0,0.167674]
[1726421895409,0.002,59934.0,59933.0,0.501379]
[1726421906098,0.002,59934.0,59933.0,0.835084]
[1726421906315,0.002,59934.0,59933.0,0.501379]
[1726421907655,0.002,59934.0,59933.0,0.835084]
[1726421907872,0.002,59934.0,59933.0,0.501379]
[1726421908644,0.002,59934.0,59933.0,0.835084]
[1726421909942,0.002,59934.0,59933.0,0.501379]
[1726421910154,0.002,59934.0,59933.0,0.835084]
[1726421910369,0.002,59934.0,59933.0,1.21889762]
[1726421910585,0.002,59934.0,59933.0,1.168789]
[1726421910793,0.002,59934.0,59933.0,0.91023468]
[1726421911215,0.002,59934.0,59933.0,0.835084]
[1726421911680,0.002,59934.0,59933.0,1.168789]
[1726421912298,0.001,59934.0,59933.0,1.168789]
[1726421912503,0.001646,59940.0,59939.0,0.500508]
[1726421913966,0.001646,59940.0,59939.0,0.502508]
[1726421915354,0.001646,59940.0,59939.0,0.83818]
[1726421923079,0.001646,59940.0,59939.0,1.171852]
[1726421933898,0.001646,59940.0,59939.0,0.504508]
[1726421935409,0.001646,59940.0,59939.0,0.50533]
[1726421939092,0.001646,59940.0,59939.0,0.839002]
[1726421947837,0.001646,59940.0,59939.0,0.835409]
[1726421948769,0.001646,59940.0,59939.0,0.85664477]
[1726421949256,0.001646,59940.0,59939.0,0.90667445]
[1726421949481,0.001646,59940.0,59939.0,0.85664477]
[1726421949692,0.001646,59940.0,59939.0,0.835409]
[1726421950379,0.001646,59940.0,59939.0,0.88543868]
[1726421950599,0.001646,59940.0,59939.0,0.835409]
[1726421952854,0.001646,59940.0,59939.0,0.501737]
[1726421954415,0.001646,59940.0,59939.0,0.55178374]
[1726421956876,0.001646,59940.0,59939.0,0.835409]
[1726421957329,0.001646,59940.0,59939.0,0.91047912]
[1726421958008,0.001646,59940.0,59939.0,1.08687734]
[1726421958253,0.001646,59940.0,59939.0,1.45927769]
[1726421958566,0.001646,59940.0,59939.0,1.12560569]
[1726421958622,0.001646,59940.0,59939.0,1.26473771]
[1726421958833,0.001646,59940.0,59939.0,1.33986408]
[1726421959064,0.001646,59940.0,59939.0,1.40084809]
[1726421959288,0.001646,59940.0,59939.0,1.33985461]
[1726421959499,0.001646,59940.0,59939.0,1.26472418]
[1726421959713,0.001646,59940.0,59939.0,1.59839618]
[1726421960351,0.001646,59940.0,59939.0,1.69848967]
[1726421961214,0.001646,59940.0,59939.0,1.36481767]
[1726421961443,0.001646,59940.0,59939.0,1.2231413]
[1726421961689,0.001646,59940.0,59939.0,1.12283368]
[1726421964161,0.001646,59940.0,59939.0,1.19798147]
[1726421964367,0.001646,59940.0,59939.0,1.12083368]
[1726421964593,0.001646,59940.0,59939.0,1.09755357]
[1726421964870,0.002646,59940.0,59939.0,1.12572109]
[1726421965085,0.003646,59940.0,59939.0,1.13165596]
[1726421965296,0.003646,59940.0,59939.0,1.23183991]
[1726421965940,0.002646,59940.0,59939.0,1.22483991]
[1726421966185,0.002646,59940.0,59939.0,1.22458525]
[1726421966393,0.003646,59940.0,59939.0,1.23458525]
[1726421967030,0.002646,59940.0,59939.0,1.22858525]
[1726421967243,0.003646,59940.0,59939.0,1.23758525]
[1726421967885,0.003646,59940.0,59939.0,0.90391325]
[1726421968114,0.003646,59940.0,59939.0,0.5702737]
[1726421969651,0.003646,59940.0,59939.0,0.9039457]
[1726421970301,0.003646,59940.0,59939.0,0.5702737]
[1726421974255,0.003646,59940.0,59939.0,0.44888509]
[1726421974937,0.003646,59940.0,59939.0,0.57024663]
[1726421975169,0.003646,59940.0,59939.0,0.54910468]
[1726421975385,0.003646,59940.0,59939.0,1.27651659]
[1726421975596,0.003646,59940.0,59939.0,1.37674007]
[1726421975808,0.003646,59940.0,59939.0,1.04306807]
[1726421976277,0.003646,59940.0,59939.0,0.90393605]
[1726421976937,0.003646,59940.0,59939.0,1.23760805]
[1726421977380,0.003646,59940.0,59939.0,0.90393605]
[1726421977658,0.003646,59940.0,59939.0,0.86529902]
[1726421977869,0.003646,59940.0,59939.0,0.9040722]
[1726421978294,0.003646,59940.0,59939.0,0.92912807]
[1726421978744,0.003646,59940.0,59939.0,1.40193209]
[1726421979893,0.003646,59940.0,59939.0,1.40214454]
[1726421980348,0.003646,59940.0,59939.0,1.41215938]
[1726421980566,0.003646,59940.0,59939.0,1.4021555]
[1726421980995,0.003646,59940.0,59939.0,1.40218257]
[1726421982419,0.003646,59940.0,59939.0,1.13775678]
[1726421982638,0.003646,59940.0,59939.0,1.26305055]
[1726421983334,0.003646,59940.0,59939.0,1.13775678]
[1726421983552,0.003646,59940.0,59939.0,1.26305055]
[1726421984280,0.003646,59940.0,59939.0,0.80408478]
[1726421984515,0.003646,59940.0,59939.0,0.86553555]
[1726421984731,0.003646,59940.0,59939.0,0.87922452]
[1726421984938,0.003646,59940.0,59939.0,0.90423529]
[1726421985153,0.003646,59940.0,59939.0,0.8830417]
[1726421985399,0.003646,59940.0,59939.0,0.90423508]
[1726421985826,0.003646,59940.0,59939.0,0.8830417]
[1726421986033,0.003646,59940.0,59939.0,0.84048034]
[1726421986248,0.003646,59940.0,59939.0,0.59193281]
[1726421986464,0.003646,59940.0,59939.0,0.84080476]
[1726421986679,0.003646,59940.0,59939.0,0.85832353]
[1726421986888,0.003646,59940.0,59939.0,0.84080231]
[1726421987104,0.003646,59940.0,59939.0,0.78310203]
[1726421987322,0.003646,59940.0,59939.0,0.88335305]
[1726421987547,0.003646,59940.0,59939.0,0.88335295]
[1726421987762,0.003646,59940.0,59939.0,0.7655833]
[1726421987979,0.003646,59940.0,59939.0,0.84077801]
[1726421988189,0.003646,59940.0,59939.0,0.84087132]
[1726421988399,0.003646,59940.0,59939.0,0.78318132]
[1726421988628,0.003646,59940.0,59939.0,0.88343234]
[1726421989526,0.003646,59940.0,59939.0,0.90462531]
[1726421989734,0.003646,59940.0,59939.0,0.88343234]
[1726421990157,0.003646,59940.0,59939.0,1.23829131]
[1726421990419,0.003646,59940.0,59939.0,1.13804029]
[1726421990639,0.003646,59940.0,59939.0,1.22464238]
[1726421990859,0.003646,59940.0,59939.0,1.26331649]
[1726421991517,0.003646,59940.0,59939.0,1.59698849]
[1726421991745,0.003646,59940.0,59939.0,1.26331649]
[1726421991956,0.003646,59940.0,59939.0,1.59698849]
[1726421992405,0.003646,59940.0,59939.0,1.26331649]
[1726421993485,0.003646,59940.0,59939.0,1.59698849]
[1726421993931,0.003646,59940.0,59939.0,1.55831438]
[1726421994153,0.003646,59940.0,59939.0,1.59708656]
[1726421994576,0.003646,59940.0,59939.0,1.59340007]
[1726421995221,0.003646,59940.0,59939.0,1.5934001]
[1726421995455,0.003646,59940.0,59939.0,1.2597281]
[1726421997236,0.003646,59940.0,59939.0,1.24214605]
[1726421997449,0.003646,59940.0,59939.0,1.25964889]
[1726421998273,0.003646,59940.0,59939.0,1.22095589]
[1726421998479,0.003646,59940.0,59939.0,1.25964341]
[1726422000608,0.003646,59940.0,59939.0,1.09565053]
[1726422000845,0.003646,59940.0,59939.0,1.13438574]
[1726422001056,0.003646,59940.0,59939.0,1.11316994]
[1726422001484,0.003646,59940.0,59939.0,1.13438913]
[1726422001702,0.003646,59940.0,59939.0,1.11316994]
[1726422002122,0.003646,59940.0,59939.0,1.18835472]
[1726422002634,0.003646,59940.0,59939.0,0.85468272]
[1726422002855,0.197046,59940.0,59939.0,0.50708431]
[1726422003308,0.20443207,59940.0,59939.0,0.50708431]
[1726422003520,0.51993207,59940.0,59939.0,0.34024831]
[1726422003790,0.68676507,59940.0,59939.0,0.019822]
[1726422008388,1.15956409,59940.0,59939.0,0.019822]
[1726422008831,1.49323109,59940.0,59939.0,0.019822]
[1726422009330,1.49223109,59940.0,59939.0,0.010822]
[1726422009769,1.49223109,59940.0,59925.0,0.12523984]
[1726422009770,0.347372,59926.0,59925.0,0.12523984]
[1726422009952,0.834375,59925.0,59924.0,0.12606384]
[1726422010205,0.834375,59925.0,59924.0,0.000824]
[1726422010419,0.50889843,59925.0,59924.0,0.000824]
[1726422010647,0.84264843,59925.0,59924.0,0.000824]
[1726422011279,0.84264843,59925.0,59924.0,0.002824]
[1726422011527,0.84264843,59925.0,59924.0,0.000824]
[1726422011777,1.15504843,59925.0,59924.0,0.001824]
[1726422011990,0.500683,59918.0,59912.0,0.000824]
[1726422012492,0.8426136,59918.0,59912.0,0.000824]
[1726422013001,0.5088246,59918.0,59912.0,0.000824]
[1726422013259,0.5098246,59918.0,59912.0,0.000824]
[1726422013761,0.5088246,59918.0,59912.0,0.000824]
[1726422014002,0.5128246,59918.0,59912.0,0.000824]
[1726422014234,0.5158246,59918.0,59912.0,0.000824]
[1726422015913,1.0301136,59918.0,59912.0,0.000824]
[1726422016818,0.6963246,59918.0,59912.0,0.000824]
[1726422017248,1.0301136,59918.0,59912.0,0.000824]
[1726422017708,1.0261136,59918.0,59912.0,0.000824]
[1726422018181,1.0301136,59918.0,59912.0,0.000824]
[1726422018639,0.834542,59913.0,59912.0,0.000824]
[1726422018922,1.30749102,59913.0,59912.0,0.000824]
[1726422019670,1.48799102,59913.0,59912.0,0.000824]
[1726422019914,0.48656502,59904.0,59903.0,0.000823]
[1726422020156,1.46669902,59904.0,59903.0,0.000823]
[1726422020378,0.63995802,59901.0,59897.0,0.4665]
[1726422020620,0.97384202,59901.0,59895.0,0.0040129]
[1726422021124,1.30772602,59901.0,59895.0,0.0040129]
[1726422021619,0.97384202,59901.0,59895.0,0.0040129]
[1726422022111,0.8699079,59901.0,59895.0,0.0040129]
[1726422022628,0.8789079,59901.0,59900.0,0.0049078]
[1726422022870,0.8789079,59901.0,59900.0,0.0039078]
[1726422023110,0.8609079,59901.0,59900.0,0.0039078]
[1726422023351,0.8679079,59901.0,59900.0,0.0049078]